Cogmind - Beta 14 @@@ ROGUE MODE // 2024.12.31 @ 20:48:17 Player: PTS Result: Destroyed by H-66 Slayer with Gauss Rifle Performance ------------- Evolutions (4) 2000 Regions Visited (8) 1600 Robots Destroyed (77) 385 Value Destroyed (3855) 3855 Prototype IDs (28) 560 Alien Tech Used (0) 0 Bonus (1742) 1742 TOTAL SCORE: 10142 Bonus ------- High Alert Combat Kills 769 Entered Garrisons 200 Used RIF Installer 500 Aligned with FarCom 300 Friendly Fire -27 Cogmind --------- Core Integrity 0/850 Matter 297/300 Energy 100/100 System Corruption 0% Temperature Cool (0) Movement Core (50) Location -6/Factory Parts ------- > --- POWER (2) -------- (None) > --- PROPULSION (3) --- (None) > --- UTILITY (6) ------ (None) > --- WEAPON (4) ------- (None) > --- INVENTORY (5) ---- Weight Redist. System Authchip [R/Combat] Relay Coupler [NC] (27) Relay Coupler [Sentry] (21) Remote Datajack Peak State ------------ > --- POWER ------------ Light Antimatter Reactor Light Quantum Reactor > --- PROPULSION ------- Carbon-fiber Leg Flexi-carbon Leg Flexi-carbon Leg > --- UTILITY ---------- Advanced Heat Sink Medium Storage Unit Machine Analyzer Kinecellerator Advanced Phase Shifter Improved Shield Generator > --- WEAPON ----------- XL Autogun Subcomponent XL Autogun Subcomponent XL Autogun Subcomponent XL Autogun Subcomponent > --- INVENTORY -------- Improved Deuterium Engine Carbon-fiber Leg Sensor Array Improved Reaction Control System Authchip [R/Combat] Authchip [R/Combat] Relay Coupler [NC] Relay Coupler [Sentry] Relay Coupler [Demolisher] [Rating: 82] Favorites ----------- Power Light Antimatter Reactor Engine Improved Deuterium Engine Power Core Nuclear Core Reactor Light Antimatter Reactor Propulsion Carbon-fiber Leg Leg Carbon-fiber Leg Wheel Wheel Hover Unit Hover Unit Utility Medium Storage Unit Device Advanced Heat Sink Storage Medium Storage Unit Processor Machine Analyzer Weapon XL Autogun Subcomponent Energy Gun Medium Laser Ballistic Gun XL Autogun Subcomponent Build | -11 -10 -10 -10 -9 -8 -7 -7 -6 ------- Run | Yrd Mat Min Exi Min Mat Fac Gar Fac Slots Evolved 8 | . . . . . 4 2 . 2 Power 1 | . . . . . . 1 . . Propulsion 1 | . . . . . 1 . . . Utility 4 | . . . . . 1 1 . 2 Weapon 2 | . . . . . 2 . . . Parts Attached 62 | 7 4 1 3 4 12 2 13 16 Power 12 | 1 . 1 . . 2 1 5 2 Engine 7 | 1 . 1 . . 1 1 2 1 Core 2 | . . . . . 1 . . 1 Reactor 3 | . . . . . . . 3 . Propulsion 16 | 2 2 . . 2 4 . 2 4 Treads . | . . . . . . . . . Leg 9 | . . . . . 3 . 2 4 Wheel 5 | 2 . . . 2 1 . . . Hover 2 | . 2 . . . . . . . Flight . | . . . . . . . . . Utility 17 | 2 1 . 3 . 5 1 . 5 Device 13 | 1 1 . 1 . 5 . . 5 Storage 2 | 1 . . 1 . . . . . Processor 2 | . . . 1 . . 1 . . Hackware . | . . . . . . . . . Protection . | . . . . . . . . . Artifact . | . . . . . . . . . Weapon 17 | 2 1 . . 2 1 . 6 5 Energy Gun 6 | 1 1 . . 2 . . . 2 Energy Cannon . | . . . . . . . . . Ballistic Gun 11 | 1 . . . . 1 . 6 3 Ballistic Cannon . | . . . . . . . . . Launcher . | . . . . . . . . . Special Weapon . | . . . . . . . . . Impact Weapon . | . . . . . . . . . Slashing Weapon . | . . . . . . . . . Piercing Weapon . | . . . . . . . . . Special Melee Weapon . | . . . . . . . . . Unidentified Prototypes 2 | . . . 1 . . . 1 . Parts Lost 23 | . . . . . . . . 23 Power 4 | . . . . . . . . 4 Propulsion 5 | . . . . . . . . 5 Utility 9 | . . . . . . . . 9 Weapon 5 | . . . . . . . . 5 Highest Loss Streak 15 | . . . . . . . . 15 To Critical Strikes 1 | . . . . . . . . 1 Average Slot Usage (%) 89 | . 98 100 100 99 70 76 86 94 Engine 6 | . 14 14 14 14 7 7 3 2 Core 2 | . . . . . 1 7 3 2 Reactor 4 | . . . . . . . 7 5 Leg 16 | . . . . . 15 23 23 18 Wheel 3 | . 20 . . 19 10 . . . Hover 3 | . 7 28 28 8 . . . . Device 17 | . 14 14 13 14 17 15 15 24 Storage 8 | . 14 14 14 14 9 7 7 6 Processor 4 | . . . . . . 7 7 5 Energy Gun 3 | . 12 14 14 19 . . . 1 Ballistic Gun 16 | . 14 14 14 8 8 7 16 23 Peak Build Rating 82 | 7 7 7 12 12 60 64 78 82 Average Rating 53 | 5 6 7 9 10 52 63 66 69 On Entrance 25 | . 7 7 7 11 11 60 64 66 Naked Turns . | . . . . . . . . . Heaviest Build 61 | 14 14 14 17 19 37 44 57 61 Greatest Support 55 | 26 26 12 12 26 45 45 45 55 Greatest Overweight (x) 3 | . 1 1 1 1 1 . 1 3 Average Overweight (x) . | . . . . . . . . . Largest Inventory Capacity 10 | 8 8 8 10 10 10 10 10 10 Average Capacity 9 | 7 8 8 8 10 10 10 10 10 Most Carried 10 | 3 8 8 8 9 10 9 10 10 Average Carried 8 | 1 4 8 7 7 7 8 9 8 Final Capacity 10 | 8 8 8 10 10 10 10 10 5 Final Carried 10 | 2 8 8 8 7 10 8 10 5 Class Distribution -------------------- 76% | Scavenger-Skirmisher 13% | Mutant 9% | Skirmisher Dominant Class ---------------- Mutant | -10/Materials Mutant | -10/Mines Mutant | -10/Exiles Skirmisher | -9/Mines Scavenger-Skirmisher | -8/Materials Scavenger-Skirmisher | -7/Factory Scavenger-Skirmisher | -7/Garrison Scavenger-Skirmisher | -6/Factory Resources | -11 -10 -10 -10 -9 -8 -7 -7 -6 ----------- Run | Yrd Mat Min Exi Min Mat Fac Gar Fac Matter Collected 3810 | 237 76 15 . 94 370 64 2429 525 Remotely . | . . . . . . . . . Salvage Created 4194 | 15 116 14 . 163 422 136 2656 672 Parts 211 | 3 15 3 . 13 29 5 101 42 Haulers Intercepted . | . . . . . . . . . Recyclers Shooed . | . . . . . . . . . Parts Field Recycled . | . . . . . . . . . Retrieved Matter . | . . . . . . . . . Parts Self-Destructed . | . . . . . . . . . Prevented . | . . . . . . . . . Kills | -11 -10 -10 -10 -9 -8 -7 -7 -6 ------- Run | Yrd Mat Min Exi Min Mat Fac Gar Fac Combat Hostiles Destroyed 60 | . 2 1 . 3 11 1 31 11 Guns 59 | . 2 1 . 3 11 1 31 10 AOE 1 | . . . . . . . . 1 Classes Destroyed 13 | 1 3 1 . 2 3 . 3 . Worker 6 | . . . . 2 . . . 4 Builder 1 | . . . . . 1 . . . Tunneler 2 | 1 . . . . . . . 1 Recycler 1 | . . . . 1 . . . . Operator 3 | . 1 . . . 1 . . 1 Watcher 4 | . 1 . . . . 2 1 . Swarmer 15 | . . 1 . 3 5 . 6 . Grunt 21 | . 2 . . . 4 . 13 2 Brawler 1 | . . . . . . . 1 . Duelist 3 | . . . . . . . 2 1 Sentry 10 | . . . . . 1 1 8 . Hunter 6 | . . . . . 1 . . 5 Programmer 4 | . . . . . . . 1 3 Best Kill Streak 7 | 1 2 1 . 3 4 3 7 4 Combat Bots Only 7 | . 2 1 . 3 4 1 7 4 Max Kills in Single Turn 2 | 1 1 1 . 1 1 1 2 2 Gunslinging . | . . . . . . . . . Exploded 1 | . . . . . . . . 1 Melee . | . . . . . . . . . Uniques/NPCs Destroyed . | . . . . . . . . . Combat | -11 -10 -10 -10 -9 -8 -7 -7 -6 -------- Run | Yrd Mat Min Exi Min Mat Fac Gar Fac Hostile Shots Fired 362 | . 4 . . 8 12 9 92 237 Missed 107 | . 1 . . . 4 3 26 73 Damage Taken 3775 | . 33 . . 68 94 49 757 2774 Core 1000 | . . . . 18 10 5 105 862 Absorbed by Shields 132 | . . . . . . . . 132 Regen/Repaired (Parts) 15 | . . . . . 15 . . . Core Remaining (%) 93 | 100 . . . 92 98 . 84 . Volleys Fired 262 | 1 17 2 . 17 22 6 151 46 Largest 4 | 2 2 2 . 2 1 1 4 4 Hottest 135 | 70 70 70 . 115 60 60 80 135 Shots Fired 477 | 2 27 4 . 34 22 6 215 167 Gun 477 | 2 27 4 . 34 22 6 215 167 Cannon . | . . . . . . . . . Launcher . | . . . . . . . . . Special . | . . . . . . . . . Kinetic 428 | 1 17 2 . 12 22 6 215 153 Thermal 49 | 1 10 2 . 22 . . . 14 Explosive . | . . . . . . . . . Electromagnetic . | . . . . . . . . . Robot Hit Streak 31 | 1 4 2 . 8 7 8 31 10 Robot Miss Streak 7 | . 4 2 . 3 5 4 7 5 Penetration Max . | . . . . . . . . . Secondary Targets 3 | . . . . . . . . 3 Max Gunslinging Chain 1 | . . . . . . . . 1 Shots Hit Robots 283 | 1 12 2 . 20 22 6 128 92 Core Hits 207 | 1 10 1 . 9 20 4 121 41 Critical Kills . | . . . . . . . . . Critical Parts Destroyed . | . . . . . . . . . Critical Strikes 2 | . . . . 1 . . . 1 Burn 2 | . . . . 1 . . . 1 Melee Attacks . | . . . . . . . . . Impact . | . . . . . . . . . Slashing . | . . . . . . . . . Piercing . | . . . . . . . . . Sneak Attacks . | . . . . . . . . . Combat Hostiles . | . . . . . . . . . Follow-up Attacks . | . . . . . . . . . Damage Inflicted 11207 | 13 155 29 . 218 1365 320 6446 2661 Guns 10545 | 13 155 29 . 218 1365 320 6446 1999 Cannons . | . . . . . . . . . Explosions 662 | . . . . . . . . 662 Melee . | . . . . . . . . . Ramming . | . . . . . . . . . Kinetic 10126 | . 118 17 . 55 1365 320 6446 1805 Thermal 878 | 13 37 12 . 163 . . . 653 Explosive . | . . . . . . . . . Electromagnetic 203 | . . . . . . . . 203 Impact . | . . . . . . . . . Slashing . | . . . . . . . . . Piercing . | . . . . . . . . . Highest Corruption . | . . . . . . . . . Average Corruption . | . . . . . . . . . Corruption Purged . | . . . . . . . . . Corruption Blocked . | . . . . . . . . . Overload Shots . | . . . . . . . . . Overflow Damage 22 | . . . . . . . . 22 Projectiles . | . . . . . . . . . Explosions 22 | . . . . . . . . 22 Melee . | . . . . . . . . . Knockbacks . | . . . . . . . . . Impact . | . . . . . . . . . Kinetic . | . . . . . . . . . Secondary . | . . . . . . . . . Self-Inflicted Damage 151 | . . . . . . . 85 66 Shots 2 | . . . . . . . 1 1 Rammed . | . . . . . . . . . Targets Rammed . | . . . . . . . . . Kicked . | . . . . . . . . . Crushed . | . . . . . . . . . Highest Temperature 295 | 30 60 52 . 270 87 106 295 284 Average Temperature 71 | 18 23 27 . 77 40 43 74 90 Received Heat Transfer 550 | . 18 . . . 27 18 234 253 Siege Activations . | . . . . . . . . . Robots Corrupted . | . . . . . . . . . Combat Hostiles . | . . . . . . . . . Parts Fried 2 | . . . . . . . . 2 Impact Corruptions . | . . . . . . . . . Robots Melted . | . . . . . . . . . Combat Hostiles . | . . . . . . . . . Parts Melted 4 | . . . . 2 . . . 2 Heat Transferred 1490 | 37 111 37 . 555 . . . 750 Parts Sabotaged . | . . . . . . . . . Parts Stolen . | . . . . . . . . . Parts Stripped . | . . . . . . . . . Power Chain Reactions . | . . . . . . . . . Alert | -11 -10 -10 -10 -9 -8 -7 -7 -6 ------- Run | Yrd Mat Min Exi Min Mat Fac Gar Fac Peak Influence 1706 | 5 122 67 . 85 416 176 1706 1065 Initial 895 | . 3 47 . . . 114 123 895 Average 644 | 1 79 54 . 15 170 127 899 872 Maximum Alert Level 5 | . . . . . 2 . 5 3 Low Security (%) 31 | 100 100 100 . 100 55 100 12 . Level 1 5 | . . . . . 29 . 6 . Level 2 8 | . . . . . 14 . 12 8 Level 3 37 | . . . . . . . 35 91 Level 4 11 | . . . . . . . 24 . Level 5 4 | . . . . . . . 9 . High Security . | . . . . . . . . . Max Security . | . . . . . . . . . Squads Dispatched 15 | . 3 . . . 1 2 . 9 Investigation 6 | . . . . . 1 1 . 4 Extermination 3 | . . . . . . . . 3 Reinforcement 4 | . 3 . . . . . . 1 Assault 1 | . . . . . . . . 1 Garrison 1 | . . . . . . 1 . . Intercept . | . . . . . . . . . Searches Triggered . | . . . . . . . . . Construction Impeded . | . . . . . . . . . Haulers Reinforced . | . . . . . . . . . Active Scanning Responses . | . . . . . . . . . Cargo Convoy Interrupts . | . . . . . . . . . Stealth | -11 -10 -10 -10 -9 -8 -7 -7 -6 --------- Run | Yrd Mat Min Exi Min Mat Fac Gar Fac Distress Signals 3 | . 1 . . . 2 . . . Communications Jammed . | . . . . . . . . . Distress Signals . | . . . . . . . . . Times Spotted 84 | . 10 5 . 3 14 3 30 19 Peak Tracking Total 5 | . 4 2 . 3 4 3 5 5 Tactical Retreats 7 | . . . . . 3 . 2 2 Traps | -11 -10 -10 -10 -9 -8 -7 -7 -6 ------- Run | Yrd Mat Min Exi Min Mat Fac Gar Fac Traps Triggered 9 | . 1 . . . . . 6 2 Indirectly 1 | . . . . . . . . 1 Trap Hack Attempts . | . . . . . . . . . Triggered . | . . . . . . . . . Disarmed . | . . . . . . . . . Reprogrammed . | . . . . . . . . . Reused . | . . . . . . . . . Traps Extracted . | . . . . . . . . . Installed . | . . . . . . . . . Triggered . | . . . . . . . . . Machines | -11 -10 -10 -10 -9 -8 -7 -7 -6 ---------- Run | Yrd Mat Min Exi Min Mat Fac Gar Fac Machines Disabled 15 | . . . . . 2 . 7 6 Max in Single Turn 4 | . . . . . 1 . 2 4 Garrison Relay 4 | . . . . . . . 4 . Phase Generator 1 | . . . . . . . 1 . Machines Repaired . | . . . . . . . . . Machines Dismantled . | . . . . . . . . . Machines Sabotaged . | . . . . . . . . . Overloaded Fab Kills . | . . . . . . . . . Hacking | -11 -10 -10 -10 -9 -8 -7 -7 -6 --------- Run | Yrd Mat Min Exi Min Mat Fac Gar Fac Machines Accessed 14 | . 2 . 1 . 4 1 2 4 Terminals 8 | . 1 . . . 2 . 2 3 Fabricators . | . . . . . . . . . Repair Stations 1 | . . . . . 1 . . . Recycling Units 3 | . 1 . . . 1 . . 1 Scanalyzers . | . . . . . . . . . Garrison Access 1 | . . . . . . 1 . . Total Hacks 39 | . 4 . 1 . 12 4 3 15 Successful 16 | . 3 . 1 . 5 1 1 5 Failed 23 | . 1 . . . 7 3 2 10 Catastrophic 8 | . . . . . 2 . 2 4 Database Lockouts . | . . . . . . . . . Manual 17 | . 3 . 1 . 2 2 2 7 Terminals 22 | . 3 . . . 5 . 3 11 Fabricators . | . . . . . . . . . Repair Stations 4 | . . . . . 4 . . . Recycling Units 8 | . 1 . . . 3 . . 4 Scanalyzers . | . . . . . . . . . Garrison Access 4 | . . . . . . 4 . . Terminal Hacks 9 | . 2 . 1 . 1 . 1 4 Prototype ID Bank 2 | . . . . . 1 . . 1 Emergency Access Points 1 | . . . . . . . 1 . Terminal Index 2 | . 1 . . . . . . 1 Alert Level 1 | . . . . . . . . 1 Unreport Threat 1 | . . . . . . . . 1 Zone Layout 1 | . 1 . . . . . . . Derelict Proto ID Bank 1 | . . . 1 . . . . . Fabricator Hacks . | . . . . . . . . . Repair Station Hacks 2 | . . . . . 2 . . . Scan Component 1 | . . . . . 1 . . . Repair 1 | . . . . . 1 . . . Recycling Unit Hacks 4 | . 1 . . . 2 . . 1 Report Inventory 3 | . 1 . . . 1 . . 1 Retrieve Components 1 | . . . . . 1 . . . Scanalyzer . | . . . . . . . . . Garrison Access Hacks 1 | . . . . . . 1 . . Unlock Access 1 | . . . . . . 1 . . Unauthorized Hacks . | . . . . . . . . . Terminals . | . . . . . . . . . Fabricators . | . . . . . . . . . Repair Stations . | . . . . . . . . . Recycling Units . | . . . . . . . . . Scanalyzers . | . . . . . . . . . Garrison Access . | . . . . . . . . . Data Cores Recovered . | . . . . . . . . . Used . | . . . . . . . . . Hacking Detections 11 | . 1 . . . 3 1 2 4 Full Trace Events 9 | . . . . . 3 1 1 4 Feedback Events . | . . . . . . . . . Feedback Blocked . | . . . . . . . . . Robot Schematics Acquired . | . . . . . . . . . Robots Built . | . . . . . . . . . Authchips . | . . . . . . . . . Time . | . . . . . . . . . Total Robot Build Rating . | . . . . . . . . . Part Schematics Acquired . | . . . . . . . . . Parts Built . | . . . . . . . . . Authchips . | . . . . . . . . . Time . | . . . . . . . . . Total Part Build Rating . | . . . . . . . . . Parts Repaired 1 | . . . . . 1 . . . Time 44 | . . . . . 44 . . . Parts Recycled . | . . . . . . . . . Recycled Matter . | . . . . . . . . . Retrieved Matter . | . . . . . . . . . Retrieved Components 3 | . . . . . 3 . . . Parts Scanalyzed . | . . . . . . . . . Part Schematics Acquired . | . . . . . . . . . Parts Damaged . | . . . . . . . . . Bothacking | -11 -10 -10 -10 -9 -8 -7 -7 -6 ------------ Run | Yrd Mat Min Exi Min Mat Fac Gar Fac Used RIF Installer 1 | . . . . . . . 1 . Robots Hacked . | . . . . . . . . . Non-combat . | . . . . . . . . . Combat . | . . . . . . . . . Robot Hacks Applied . | . . . . . . . . . Relay Couplers Released 12 | . . . . . . . 12 . Machine Destruction 12 | . . . . . . . 12 . Fabnet Peak Effective % . | . . . . . . . . . Robots Rewired . | . . . . . . . . . Allies Hacked . | . . . . . . . . . Hacks Repelled . | . . . . . . . . . Allies | -11 -10 -10 -10 -9 -8 -7 -7 -6 -------- Run | Yrd Mat Min Exi Min Mat Fac Gar Fac Total Allies . | . . . . . . . . . Largest Group . | . . . . . . . . . Highest-Rated Group . | . . . . . . . . . Highest-Rated Ally . | . . . . . . . . . Total Orders . | . . . . . . . . . Ally Attacks . | . . . . . . . . . Total Damage . | . . . . . . . . . Kills . | . . . . . . . . . Allies Corrupted . | . . . . . . . . . Allies Melted . | . . . . . . . . . Intel | -11 -10 -10 -10 -9 -8 -7 -7 -6 ------- Run | Yrd Mat Min Exi Min Mat Fac Gar Fac Robot Analysis Total . | . . . . . . . . . Derelict Logs Recovered 2 | . . . . 2 . . . . Drone Launches . | . . . . . . . . . Drone Recoveries . | . . . . . . . . . Exploration | -11 -10 -10 -10 -9 -8 -7 -7 -6 ------------- Run | Yrd Mat Min Exi Min Mat Fac Gar Fac Turns Passed 5194 | 58 251 184 159 506 471 64 2340 1161 Spaces Moved 2824 | 49 202 139 236 461 257 45 953 482 Core 20 | 3 . . . . . . . 17 Treads . | . . . . . . . . . Legs 1595 | . . . . . 132 45 953 465 Wheels 686 | 46 150 . . 365 125 . . . Hover 523 | . 52 139 236 96 . . . . Flight . | . . . . . . . . . Fastest Speed 50 | 50 90 56 56 90 86 120 120 120 Average Speed 132 | 86 96 68 63 95 107 120 184 152 Slowest Speed 260 | 90 116 116 116 116 190 120 190 260 Overloaded Moves . | . . . . . . . . . Propulsion Burnouts . | . . . . . . . . . Robots Hopped . | . . . . . . . . . Cave-ins Triggered . | . . . . . . . . . Exploration Rate (%) 40 | 4 43 29 60 94 23 2 97 8 Regions Visited 8 Branch Regions 3 Pre-discovered Areas 1 | . . . . 1 . . . . Known Exits Taken 2 | . . . . . 1 1 . . Unknown Exits Taken 5 | 1 1 1 1 1 . . . . Scrap Searched 3 | . . 1 . 2 . . . . Spaces Dug . | . . . . . . . . . Terrain Destroyed 119 | . . . . . 30 4 46 39 Melee . | . . . . . . . . . Projectile 36 | . . . . . 30 4 . 2 AOE 83 | . . . . . . . 46 37 Terrain Rammed . | . . . . . . . . . Walls Destroyed . | . . . . . . . . . Machines Disabled . | . . . . . . . . . Actions | -11 -10 -10 -10 -9 -8 -7 -7 -6 --------- Run | Yrd Mat Min Exi Min Mat Fac Gar Fac Total 4170 | 59 234 223 246 496 455 55 1526 876 Wait 900 | . 1 82 . 6 138 3 348 322 Move 2816 | 48 201 138 235 460 256 44 952 482 Hop . | . . . . . . . . . Pick Up 65 | 3 9 . 1 4 16 . 23 9 Fast Attach 11 | 6 . . 2 . 1 . 2 . Attach 32 | 1 3 . . 2 6 2 6 12 Detach 3 | . . . . . 2 . . 1 Swap 19 | . 1 1 1 2 5 . 5 4 Drop 42 | . 2 . 7 5 9 . 19 . Fire 262 | 1 17 2 . 17 22 6 151 46 Melee . | . . . . . . . . . Ram . | . . . . . . . . . Kick . | . . . . . . . . . Crush . | . . . . . . . . . Escape Stasis 20 | . . . . . . . 20 . Rewire . | . . . . . . . . . Trap . | . . . . . . . . . Miscellaneous . | . . . . . . . . . Route ------- -11/Scrapyard -10/Materials -10/Mines -10/Exiles -9/Mines -8/Materials (discovered 2 exits: *Fac x2) -7/Factory -7/Garrison (discovered 3 exits: *Fac x3) -6/Factory History --------- Turn | Location | Event 10 | -11/Scrapyard | Discovered new exit (range 16) 59 | -11/Scrapyard | Entered Materials 199 | -10/Materials | Met 8R-AWN 295 | -10/Materials | Discovered new exit (range 6) 304 | -10/Materials | Build established: Mutant 310 | -10/Materials | Entered Mines 311 | -10/Mines | Followed 8R-AWN into the Mines 490 | -10/Mines | Discovered new exit (range 5) 494 | -10/Mines | Entered Exiles 509 | -10/Exiles | Welcomed by 8R-AWN 519 | -10/Exiles | Met EX-HEX 535 | -10/Exiles | Met EX-BIN 542 | -10/Exiles | Aligned with FarCom system 543 | -10/Exiles | Given EX-Vault access code 556 | -10/Exiles | Opened EX-Vault 559 | -10/Exiles | Found Prototype Processor 559 | -10/Exiles | Identified 0b10 Alert Chip 566 | -10/Exiles | Found XL Autogun Array 582 | -10/Exiles | Warned to stay clear of 0b10 Research branches 597 | -10/Exiles | Met EX-DEC 639 | -10/Exiles | Discovered new exit (range 14) 653 | -10/Exiles | Left Exiles lab with XL Autogun Array 653 | -10/Exiles | Entered Mines 738 | -9/Mines | Learned location of Zion (-7) 876 | -9/Mines | Received a Rocket Launcher from a helpful Derelict 942 | -9/Mines | Build established: Skirmisher 1150 | -9/Mines | Discovered new exit (range 10) 1159 | -9/Mines | Entered Materials 1159 | -8/Materials | Evolved 4 slots: Propulsion x1, Utility x1, Weapon x2 1160 | -8/Materials | Identified exit to Factory 1475 | -8/Materials | Build established: Scavenger-Skirmisher 1539 | -8/Materials | Discovered exit to Factory (range 16) 1609 | -8/Materials | Repaired Kinecellerator 1630 | -8/Materials | Entered Factory 1630 | -7/Factory | Evolved 2 slots: Power x1, Utility x1 1693 | -7/Factory | Identified exit to Garrison 1694 | -7/Factory | Entered Garrison 2052 | -7/Garrison | Triggered checkpoint 2121 | -7/Garrison | Garrison Relay disabled 2199 | -7/Garrison | Phase Generator disabled 2441 | -7/Garrison | Destroyed 7 combat bots 2444 | -7/Garrison | Triggered checkpoint 2472 | -7/Garrison | Triggered checkpoint 2542 | -7/Garrison | Discovered new exit (range 15) 2649 | -7/Garrison | Installed Relay Interface Framework 2696 | -7/Garrison | Triggered checkpoint 3169 | -7/Garrison | Triggered checkpoint 3240 | -7/Garrison | Garrison Relay disabled 3330 | -7/Garrison | Discovered new exit (range 13) 3398 | -7/Garrison | Triggered checkpoint 3468 | -7/Garrison | Triggered checkpoint 3503 | -7/Garrison | Discovered new exit (range 13) 3661 | -7/Garrison | Triggered checkpoint 3661 | -7/Garrison | Garrison Relay disabled 3792 | -7/Garrison | Triggered checkpoint 3810 | -7/Garrison | Garrison Relay disabled 4034 | -7/Garrison | Entered Factory 4034 | -6/Factory | Evolved 2 slots: Utility x2 4630 | -6/Factory | Lost 7 parts (2p2n3u) 5084 | -6/Factory | First assault squad dispatched 5170 | -6/Factory | Core integrity fell below 50% 5180 | -6/Factory | Core integrity fell below 20% 5195 | -6/Factory | Destroyed by H-66 Slayer with Gauss Rifle Last Messages --------------- 05176_ Penetrated by Slug. 05176_ Slug penetrates Wall. 05177_ U-05 Engineer lays Concrete. 05178_ R-10 Processor collects Core Shielding. 05179_ Penetrated by Slug. 05180_ U-05 Engineer lays Concrete. 05183_ Penetrated by Slug. 05184_ U-05 Engineer lays Concrete. 05189_ Slug penetrates Door. 05189_ Machine Analyzer destroyed. 05189_ U-05 Engineer lays Concrete. 05190_ Penetrated by Slug. 05190_ Terminal disabled. 05190_ Penetrated by Slug. 05191_ U-05 Engineer lays Concrete. 05192_ Slug penetrates R-10 Processor. 05192_ U-05 Engineer lays Concrete. 05195_ Slug penetrates Wall. 05195_ Med. Storage Unit destroyed. 05195_ Penetrated by Slug. Map ----- +----------------------------------------------------+ | | | | | | | | | | | | | | | | | | | | | | | | | | | | | | | | | | | | | | | | | ########???????????????????######;;;;;;""" #???? | | #?????????????####### ] =" #????? | | #?????????????# # m g % " ##????? | | ############### # " #????? | | + R ; h% %" # #???? | | ###! ### !@!# " " #?????? | | #?# #?# h # " #?????? | | #?# """ #?## #######"""""""""##?????? | | ###+###### """ #?# #?????##### #??????? | | """ #?# ??? #### ##??????? | | #?# ? ??# #???????? | | o #?# ???##???????? | | ###########+#### #?########### ????????????? | | #????????? ???# +???????????# ????????????? | | #####???????????# #???????????# ???????????? | | #???????????# #???????????# ???????????? | | """ #???????????# w #???????????# ???????????? | | """ #???????????? #???????????# ???????????? | | """ #???????????? #???????????# ??????????? | | #???????????? ????????????# ??????????? | | #???????????????????????????# ??????????? | | #???????????????????????????# ??????????? | | #???????????????????????????? ???????????? | | #####????????????????????????????????????????????? | | ?????????????????????????????????????????????????? | | ?????????????????????????????????????????????????? | | ?????????????????????????????????????????????????? | | ?????????????????????????????????????????????????? | | ?????????????????????????????????????????????????? | | ?????????????????????????????????????????????????? | +----------------------------------------------------+ Best States ------------- Heat Dissipation 56 Energy Generation 41 Energy Capacity 430 Matter Stores 300 Matter Capacity 300 Sight Range 16 Robot Scan Range 14 Terrain Scan Density 10 Phase Shifting 15 Evasion (%) 70 Kinecelleration 30 Authchip Count 2 Item Schematics ----------------- None Robot Schematics ------------------ None Fabricated ------------ Nothing Alien Tech Used ----------------- None Achievements -------------- None Challenges ------------ None Game ------ Seed MeleeAlloyHumpback Manual? 0 Play Time 00:44:59 Cumulative 19.6 hours Start 2024.12.28 @ 20:44:06 End 2024.12.31 @ 20:48:17 Sessions 2 Manual Loads 0 Difficulty Rogue Special Mode None Game No. 32 Rogue 32 Adventurer 0 Explorer 0 Win Type - Total 0 Types 0/0/0/0/0/0/0/0/0 Lore% 12 Gallery% 25 Achievement% 24 Wizard Run 0 Options --------- Layout 1 ASCII 0 Keyboard 0 Movement Mouse Keybinds 0 Fullscreen 1 Font 24/Smallcaps Map View 50x35 Zoom Use 0% Tactical HUD 1 Map Filters NONE Filters NONE Steam 1 RUN: 09fe9dc9-2abb-406b-9141-e4d33bff5a9e